[Event "2nd Gujarat Open 2019"]
[Site "Ahmedabad, Gujarat"]
[Date "2019.09.22"]
[Round "?"]
[White "Sahoo, Utkal Ranjan"]
[Black "Sadbhav Rautela"]
[Result "1-0"]
[ECO "D10"]
[WhiteElo "2329"]
[BlackElo "1720"]
[Annotator "NA"]
[PlyCount "47"]
[EventDate "2019.09.22"]
[EventCountry "IND"]
[SourceTitle "playchess.com"]
[Source "ChessBase"]
[SourceQuality "1"]
[TimeControl "5400+30"]

1. d4 {[%emt 0:00:00]} d5 {[%emt 0:00:00]} 2. c4 {[%emt 0:00:00]} c6 {[%emt 0:00:00]} 3. Nc3 {[%emt 0:00:00]} Nf6 {[%emt 0:00:00]} 4. cxd5 {[%emt 0:00:00]} cxd5 {[%emt 0:00:15]} 5. Bf4 {[%emt 0:00:04]} Nc6 {[%emt 0:01:19]} 6. e3 {[%emt 0:00:06]} Bf5 {[%emt 0:01:18]} 7. Qb3 {[%emt 0:00:09]} Qd7 {[%emt 0:01:19]} 8. Nf3 {[%emt 0:00:09]} e6 {[%emt 0:16:20]} 9. Ne5 {[%emt 0:00:30]} Qc8 {[%emt 0:01:47]} 10. Bb5 {[%emt 0:02:16]} Bd6 {[%emt 0:01:19]} 11. Nxc6 {[%emt 0:02:15]} bxc6 {[%emt 0:02:03]} 12. Bxd6 {[%emt 0:00:09]} cxb5 {[%emt 0:00:09]} 13. Nxb5 {[%emt 0:00:10]} Kd7 {[%emt 0:01:07]} 14. O-O {[%emt 0:02:01]} Qb7 {[%emt 0:04:46]} 15. Rfc1 {[%emt 0:01:10]} Rhc8 {[%emt 0:02:27]} 16. Ba3 {[%emt 0:02:59]} a6 {[%emt 0:01:32]} 17. Qb4 {[%emt 0:00:28]} Ng8 {[%emt 0:05:23]} 18. Qd6+ {[%emt 0:00:26]} Ke8 {[%emt 0:00:28]} 19. Qf8+ {[%emt 0:00:04]} Kd7 {[%emt 0:00:45]} 20. Qxf7+ {[%emt 0:00:05]} Kd8 {[%emt 0:00:53]} 21. Qxg8+ {[%emt 0:00:17]} Kd7 {[%emt 0:00:25]} 22. Qf7+ {[%emt 0:00:05]} Kd8 {[%emt 0:00:08]} 23. Qf8+ {[%emt 0:00:04]} Kd7 {[%emt 0:00:09]} 24. Qe7# {[%emt 0:00:02]} 1-0

[Event "2nd Gujarat Open 2019"]
[Site "Ahmedabad, Gujarat"]
[Date "2019.09.22"]
[Round "?"]
[White "Souhardo Basak"]
[Black "Aagam Aditya E"]
[Result "1-0"]
[ECO "C82"]
[WhiteElo "2301"]
[BlackElo "1715"]
[Annotator "NA"]
[PlyCount "109"]
[EventDate "2019.09.22"]
[EventCountry "IND"]
[SourceTitle "playchess.com"]
[Source "ChessBase"]
[SourceQuality "1"]
[TimeControl "5400+30"]

1. e4 {[%emt 0:00:00]} e5 {[%emt 0:00:08]} 2. Nf3 {[%emt 0:00:00]} Nc6 {[%emt 0:00:48]} 3. Bb5 {[%emt 0:00:00]} a6 {[%emt 0:00:42]} 4. Ba4 {[%emt 0:00:00]} Nf6 {[%emt 0:00:44]} 5. O-O {[%emt 0:00:04]} Nxe4 {[%emt 0:01:06]} 6. d4 {[%emt 0:01:11]} b5 {[%emt 0:01:02]} 7. Bb3 {[%emt 0:00:28]} d5 {[%emt 0:01:33]} 8. dxe5 {[%emt 0:01:11]} Be6 {[%emt 0:01:57]} 9. c3 {[%emt 0:00:31]} Bc5 {[%emt 0:02:22]} 10. a4 {[%emt 0:01:52]} b4 {[%emt 0:02:08]} 11. Qe2 {[%emt 0:04:19]} O-O {[%emt 0:02:16]} 12. Bc2 {[%emt 0:04:24]} bxc3 {[%emt 0:11:20]} 13. Nxc3 {[%emt 0:00:24]} Nxc3 {[%emt 0:00:46]} 14. bxc3 {[%emt 0:00:02]} Qd7 {[%emt 0:11:33]} 15. a5 Bf5 {[%emt 0:00:30]} 16. Ra4 Rfe8 {[%emt 0:00:30]} 17. Rh4 Be7 {[%emt 0:00:30]} 18. Rh5 Bg6 {[%emt 0:00:30]} 19. Rh3 Qg4 {[%emt 0:00:30]} 20. Rg3 Qc4 {[%emt 0:00:30]} 21. Qxc4 dxc4 {[%emt 0:00:30]} 22. Ba4 Be4 {[%emt 0:00:30]} 23. Re1 Bd5 {[%emt 0:00:30]} 24. Nd4 Nxd4 {[%emt 0:00:30]} 25. Bxe8 Nf5 {[%emt 0:00:30]} 26. Ba4 Nxg3 {[%emt 0:00:30]} 27. hxg3 Rb8 {[%emt 0:00:30]} 28. Be3 Bd8 {[%emt 0:00:30]} 29. Ba7 Ra8 {[%emt 0:00:30]} 30. Rd1 c6 {[%emt 0:00:30]} 31. Bb6 Bxb6 {[%emt 0:00:30]} 32. axb6 Rb8 {[%emt 0:00:30]} 33. Rb1 Rb7 {[%emt 0:00:30]} 34. f3 Kf8 {[%emt 0:00:30]} 35. Kf2 Ke7 {[%emt 0:00:30]} 36. Ke3 c5 {[%emt 0:00:30]} 37. Bc2 h6 {[%emt 0:00:30]} 38. Rd1 Rd7 {[%emt 0:00:30]} 39. Bf5 Be6 {[%emt 0:00:30]} 40. Rb1 Rb7 {[%emt 0:00:30]} 41. Be4 Rb8 {[%emt 0:00:30]} 42. b7 Bd7 {[%emt 0:00:30]} 43. Rb6 Bb5 {[%emt 0:00:30]} 44. Rd6 Rh8 {[%emt 0:00:30]} 45. Bf5 Rb8 {[%emt 0:00:30]} 46. Bc8 Ke8 {[%emt 0:00:30]} 47. Ke4 Ke7 {[%emt 0:00:30]} 48. Kd5 Be8 {[%emt 0:00:30]} 49. Kxc5 f6 {[%emt 0:00:30]} 50. exf6+ gxf6 {[%emt 0:00:30]} 51. Rxa6 Kd8 {[%emt 0:00:30]} 52. Kd6 Rxc8 {[%emt 0:00:30]} 53. Ra8 Bd7 {[%emt 0:00:30]} 54. Rxc8+ Bxc8 {[%emt 0:00:30]} 55. b8=Q 1-0

[Event "2nd Gujarat Open 2019"]
[Site "Ahmedabad, Gujarat"]
[Date "2019.09.22"]
[Round "?"]
[White "Srihari L R"]
[Black "Adireddy Tarun"]
[Result "1-0"]
[ECO "A13"]
[WhiteElo "2283"]
[BlackElo "1706"]
[Annotator "NA"]
[PlyCount "89"]
[EventDate "2019.09.22"]
[EventCountry "IND"]
[SourceTitle "playchess.com"]
[Source "ChessBase"]
[SourceQuality "1"]
[TimeControl "5400+30"]

1. Nf3 {[%emt 0:01:01]} Nf6 {[%emt 0:00:00]} 2. c4 {[%emt 0:00:35]} e6 {[%emt 0:00:00]} 3. b3 {[%emt 0:01:05]} d5 {[%emt 0:00:14]} 4. Bb2 {[%emt 0:00:06]} b6 {[%emt 0:01:08]} 5. g3 {[%emt 0:01:19]} Bb7 {[%emt 0:03:10]} 6. Bg2 {[%emt 0:01:42]} Nbd7 {[%emt 0:01:56]} 7. O-O {[%emt 0:01:11]} Bd6 {[%emt 0:01:52]} 8. Nc3 {[%emt 0:03:41]} O-O {[%emt 0:06:47]} 9. Qc2 {[%emt 0:06:35]} a6 {[%emt 0:04:19]} 10. Rfd1 {[%emt 0:03:27]} Qe7 {[%emt 0:02:17]} 11. Rac1 {[%emt 0:03:41]} Rfd8 {[%emt 0:01:34]} 12. d4 {[%emt 0:05:13]} Ne4 {[%emt 0:04:25]} 13. Nxe4 dxe4 {[%emt 0:00:30]} 14. Ne5 Ba3 {[%emt 0:00:30]} 15. Bxa3 Qxa3 {[%emt 0:00:30]} 16. Nxd7 Rxd7 {[%emt 0:00:30]} 17. Bxe4 Bxe4 {[%emt 0:00:30]} 18. Qxe4 Rad8 {[%emt 0:00:30]} 19. Rc2 Qd6 {[%emt 0:00:30]} 20. Rcd2 e5 {[%emt 0:00:30]} 21. e3 g6 {[%emt 0:00:30]} 22. Qb7 Qa3 {[%emt 0:00:30]} 23. Qe4 Qd6 {[%emt 0:00:30]} 24. dxe5 Qxd2 {[%emt 0:00:30]} 25. Rxd2 Rxd2 {[%emt 0:00:30]} 26. e6 fxe6 {[%emt 0:00:30]} 27. Qxe6+ Kf8 {[%emt 0:00:30]} 28. Qf6+ Kg8 {[%emt 0:00:30]} 29. Qe6+ Kf8 {[%emt 0:00:30]} 30. c5 R8d7 {[%emt 0:00:30]} 31. cxb6 cxb6 {[%emt 0:00:30]} 32. Qxb6 Rxa2 {[%emt 0:00:30]} 33. e4 Re2 {[%emt 0:00:30]} 34. e5 Re7 {[%emt 0:00:30]} 35. Qf6+ Ke8 {[%emt 0:00:30]} 36. Qc6+ Kd8 {[%emt 0:00:30]} 37. Qa8+ Kc7 {[%emt 0:00:30]} 38. Qa7+ Kd8 {[%emt 0:00:30]} 39. Qb8+ Kd7 {[%emt 0:00:30]} 40. f4 Ra2 {[%emt 0:00:30]} 41. Qd6+ Ke8 {[%emt 0:00:30]} 42. e6 Kf8 {[%emt 0:00:30]} 43. Qd8+ Re8 {[%emt 0:00:30]} 44. Qf6+ Kg8 {[%emt 0:00:30]} 45. Qf7+ 1-0

[Event "2nd Gujarat Open 2019"]
[Site "Ahmedabad, Gujarat"]
[Date "2019.09.22"]
[Round "?"]
[White "Pranav Vijay"]
[Black "Krishnan Ritvik"]
[Result "1-0"]
[ECO "B31"]
[WhiteElo "2265"]
[BlackElo "1718"]
[Annotator "NA"]
[PlyCount "123"]
[EventDate "2019.09.22"]
[EventCountry "IND"]
[SourceTitle "playchess.com"]
[Source "ChessBase"]
[SourceQuality "1"]
[TimeControl "5400+30"]

1. e4 {[%emt 0:00:21]} c5 {[%emt 0:00:04]} 2. Nf3 {[%emt 0:00:11]} Nc6 {[%emt 0:00:17]} 3. Bb5 {[%emt 0:00:07]} g6 {[%emt 0:00:37]} 4. O-O {[%emt 0:00:08]} Bg7 {[%emt 0:00:41]} 5. c3 {[%emt 0:00:54]} Nf6 {[%emt 0:00:22]} 6. Re1 {[%emt 0:01:25]} O-O {[%emt 0:00:47]} 7. h3 {[%emt 0:03:03]} Qb6 {[%emt 0:01:38]} 8. Na3 {[%emt 0:03:04]} Rd8 {[%emt 0:02:07]} 9. d3 {[%emt 0:01:42]} a6 {[%emt 0:08:50]} 10. Ba4 {[%emt 0:00:40]} d6 {[%emt 0:21:17]} 11. Bg5 {[%emt 0:04:58]} Be6 12. Qe2 {[%emt 0:00:30]} Rac8 13. Be3 {[%emt 0:00:30]} Qc7 14. Ng5 {[%emt 0:00:30]} Bd7 15. Bb3 {[%emt 0:00:30]} e6 16. Rad1 {[%emt 0:00:30]} h6 17. Nf3 {[%emt 0:00:30]} Re8 18. Bc2 {[%emt 0:00:30]} e5 19. Bb3 {[%emt 0:00:30]} Na5 20. Qd2 {[%emt 0:00:30]} Nxb3 21. axb3 {[%emt 0:00:30]} Kh7 22. c4 {[%emt 0:00:30]} Ng8 23. b4 {[%emt 0:00:30]} f5 24. Qc3 {[%emt 0:00:30]} f4 25. Bd2 {[%emt 0:00:30]} g5 26. bxc5 {[%emt 0:00:30]} dxc5 27. b4 {[%emt 0:00:30]} b5 28. cxb5 {[%emt 0:00:30]} axb5 29. Rc1 {[%emt 0:00:30]} Qa7 30. bxc5 {[%emt 0:00:30]} Bf8 31. d4 {[%emt 0:00:30]} exd4 32. Qd3 {[%emt 0:00:30]} Bxc5 33. Nc2 {[%emt 0:00:30]} Be6 34. e5+ {[%emt 0:00:30]} Kh8 35. Ncxd4 {[%emt 0:00:30]} Bc4 36. Qe4 {[%emt 0:00:30]} Qh7 37. Nf5 {[%emt 0:00:30]} Red8 38. e6 {[%emt 0:00:30]} Qg6 39. Ne5 {[%emt 0:00:30]} Qxe6 40. Bc3 {[%emt 0:00:30]} Nf6 41. Nxc4 {[%emt 0:00:30]} Qxe4 42. Rxe4 {[%emt 0:00:30]} Rf8 43. Re6 {[%emt 0:00:30]} bxc4 44. Rxf6 {[%emt 0:00:30]} Rxf6 45. Bxf6+ {[%emt 0:00:30]} Kh7 46. Bc3 {[%emt 0:00:30]} Kg6 47. Nd4 {[%emt 0:00:30]} Bxd4 48. Bxd4 {[%emt 0:00:30]} Kf5 49. f3 {[%emt 0:00:30]} h5 50. Ra1 {[%emt 0:00:30]} Rd8 51. Ra5+ {[%emt 0:00:30]} Kg6 52. Ra6+ {[%emt 0:00:30]} Kf7 53. Bf6 {[%emt 0:00:30]} Rd1+ 54. Kf2 {[%emt 0:00:30]} Rd2+ 55. Kf1 {[%emt 0:00:30]} g4 56. hxg4 {[%emt 0:00:30]} hxg4 57. fxg4 {[%emt 0:00:30]} Rd3 58. Be5 {[%emt 0:00:30]} f3 59. g3 {[%emt 0:00:30]} Re3 60. Bf4 {[%emt 0:00:30]} Re2 61. Rc6 {[%emt 0:00:30]} Rc2 62. g5 {[%emt 0:00:30]} 1-0

[Event "2nd Gujarat Open 2019"]
[Site "Ahmedabad, Gujarat"]
[Date "2019.09.22"]
[Round "?"]
[White "Abu Sufian, Shakil"]
[Black "Ayan Pal"]
[Result "1-0"]
[ECO "B35"]
[WhiteElo "2255"]
[BlackElo "1706"]
[Annotator "NA"]
[PlyCount "153"]
[EventDate "2019.09.22"]
[EventCountry "IND"]
[SourceTitle "playchess.com"]
[Source "ChessBase"]
[SourceQuality "1"]
[TimeControl "5400+30"]

1. e4 {[%emt 0:00:00]} c5 {[%emt 0:00:29]} 2. Nf3 {[%emt 0:00:00]} Nc6 {[%emt 0:00:45]} 3. Nc3 {[%emt 0:00:03]} g6 {[%emt 0:01:17]} 4. d4 {[%emt 0:00:11]} cxd4 {[%emt 0:00:50]} 5. Nxd4 {[%emt 0:00:04]} Bg7 {[%emt 0:01:25]} 6. Be3 {[%emt 0:00:03]} Nf6 {[%emt 0:01:17]} 7. Bc4 {[%emt 0:00:56]} Qa5 {[%emt 0:01:26]} 8. O-O {[%emt 0:02:48]} O-O {[%emt 0:01:17]} 9. Bb3 {[%emt 0:02:58]} d6 {[%emt 0:01:57]} 10. h3 {[%emt 0:05:57]} Bd7 {[%emt 0:01:28]} 11. Qd2 {[%emt 0:02:57]} Nxd4 {[%emt 0:04:15]} 12. Bxd4 {[%emt 0:01:02]} Nxe4 {[%emt 0:03:47]} 13. Nxe4 {[%emt 0:07:07]} Qxd2 {[%emt 0:00:20]} 14. Nxd2 {[%emt 0:00:02]} Bxd4 {[%emt 0:01:03]} 15. c3 {[%emt 0:00:29]} Bg7 {[%emt 0:02:53]} 16. Rfe1 {[%emt 0:00:58]} e6 {[%emt 0:02:40]} 17. Rad1 {[%emt 0:00:21]} b5 {[%emt 0:06:35]} 18. Nf3 {[%emt 0:02:19]} d5 {[%emt 0:00:32]} 19. Ne5 {[%emt 0:00:17]} Bxe5 {[%emt 0:04:14]} 20. Rxe5 {[%emt 0:00:01]} a5 {[%emt 0:00:24]} 21. a3 {[%emt 0:00:34]} Rfc8 {[%emt 0:05:22]} 22. Rd4 {[%emt 0:01:21]} Kg7 {[%emt 0:07:58]} 23. f4 {[%emt 0:01:02]} Rab8 {[%emt 0:06:13]} 24. Kf2 {[%emt 0:02:25]} Rc7 {[%emt 0:03:01]} 25. Re1 {[%emt 0:07:02]} b4 {[%emt 0:03:10]} 26. cxb4 {[%emt 0:02:40]} axb4 {[%emt 0:00:58]} 27. a4 {[%emt 0:00:08]} Ra7 {[%emt 0:00:41]} 28. Ra1 {[%emt 0:00:43]} Kf6 {[%emt 0:01:24]} 29. Bd1 {[%emt 0:06:24]} Ke7 {[%emt 0:02:44]} 30. b3 {[%emt 0:00:11]} Kd6 {[%emt 0:00:45]} 31. Rc1 {[%emt 0:01:31]} f6 {[%emt 0:01:59]} 32. Bf3 {[%emt 0:01:04]} Ra5 {[%emt 0:00:28]} 33. Rcc4 {[%emt 0:02:41]} e5 {[%emt 0:02:17]} 34. fxe5+ {[%emt 0:01:06]} fxe5 {[%emt 0:00:09]} 35. Rxb4 {[%emt 0:00:08]} Rf8 {[%emt 0:01:03]} 36. Rd2 {[%emt 0:06:08]} Kc5 {[%emt 0:01:07]} 37. Rh4 {[%emt 0:00:14]} e4 {[%emt 0:00:56]} 38. Ke3 {[%emt 0:00:45]} g5 {[%emt 0:04:23]} 39. Rxh7 {[%emt 0:01:04]} Bf5 {[%emt 0:01:03]} 40. b4+ {[%emt 0:03:53]} Kxb4 {[%emt 0:00:52]} 41. Rb7+ {[%emt 0:00:06]} Kc5 {[%emt 0:00:51]} 42. Bd1 {[%emt 0:00:11]} Be6 {[%emt 0:04:02]} 43. Rg7 {[%emt 0:09:06]} Rg8 {[%emt 0:03:08]} 44. Rxg8 {[%emt 0:00:20]} Bxg8 {[%emt 0:00:07]} 45. g3 {[%emt 0:00:06]} Be6 {[%emt 0:02:14]} 46. h4 {[%emt 0:00:07]} gxh4 {[%emt 0:00:18]} 47. gxh4 {[%emt 0:00:02]} Bd7 {[%emt 0:00:44]} 48. h5 {[%emt 0:06:28]} Ra6 {[%emt 0:06:17]} 49. Rh2 {[%emt 0:10:04]} Bf5 {[%emt 0:01:46]} 50. Rc2+ {[%emt 0:06:16]} Kd6 {[%emt 0:03:05]} 51. Kf4 {[%emt 0:00:05]} Bh7 {[%emt 0:01:15]} 52. Rd2 {[%emt 0:05:46]} Ra7 {[%emt 0:03:13]} 53. Bb3 {[%emt 0:01:32]} Bg8 {[%emt 0:00:32]} 54. h6 {[%emt 0:02:02]} Rf7+ {[%emt 0:01:05]} 55. Kg5 {[%emt 0:01:01]} Rf3 {[%emt 0:00:38]} 56. Bd1 {[%emt 0:00:18]} Rg3+ {[%emt 0:00:47]} 57. Kf4 {[%emt 0:01:49]} Rh3 {[%emt 0:00:25]} 58. Rg2 {[%emt 0:00:21]} Bh7 {[%emt 0:00:36]} 59. Rb2 {[%emt 0:02:43]} Kc6 {[%emt 0:02:04]} 60. a5 {[%emt 0:00:25]} Ra3 {[%emt 0:00:25]} 61. Rb6+ {[%emt 0:00:14]} Kc5 {[%emt 0:00:38]} 62. Rb7 {[%emt 0:00:12]} Bg8 {[%emt 0:00:18]} 63. Rg7 {[%emt 0:00:34]} Be6 {[%emt 0:01:00]} 64. h7 {[%emt 0:00:14]} Rh3 {[%emt 0:00:05]} 65. a6 {[%emt 0:01:22]} d4 {[%emt 0:00:19]} 66. Kxe4 {[%emt 0:00:14]} Bd5+ {[%emt 0:00:07]} 67. Kf4 {[%emt 0:01:16]} d3 {[%emt 0:00:38]} 68. a7 {[%emt 0:00:13]} Kb6 {[%emt 0:00:37]} 69. Kg5 {[%emt 0:00:35]} d2 {[%emt 0:00:56]} 70. Rg6+ {[%emt 0:00:34]} Kxa7 {[%emt 0:00:48]} 71. Rh6 {[%emt 0:00:02]} Rg3+ {[%emt 0:00:33]} 72. Kf4 {[%emt 0:00:26]} Rg1 {[%emt 0:00:29]} 73. h8=Q {[%emt 0:00:11]} Rxd1 {[%emt 0:00:08]} 74. Qd4+ {[%emt 0:00:09]} Kb8 {[%emt 0:00:13]} 75. Qb6+ {[%emt 0:00:40]} Kc8 {[%emt 0:00:34]} 76. Rh8+ {[%emt 0:00:07]} Kd7 {[%emt 0:00:27]} 77. Rh7+ {[%emt 0:00:04]} 1-0

[Event "2nd Gujarat Open 2019"]
[Site "Ahmedabad, Gujarat"]
[Date "2019.09.22"]
[Round "?"]
[White "Sarwat, Walaa"]
[Black "Daakshin Arun"]
[Result "1-0"]
[ECO "B53"]
[WhiteElo "2236"]
[BlackElo "1691"]
[Annotator "NA"]
[PlyCount "79"]
[EventDate "2019.09.22"]
[EventCountry "IND"]
[SourceTitle "playchess.com"]
[Source "ChessBase"]
[SourceQuality "1"]
[TimeControl "5400+30"]

1. e4 c5 2. Nf3 d6 3. d4 cxd4 4. Qxd4 Nc6 5. Bb5 Bd7 6. Bxc6 {[%emt 0:02:30]} Bxc6 {[%emt 0:02:30]} 7. Nc3 {[%emt 0:06:11]} Nf6 {[%emt 0:00:15]} 8. Bg5 {[%emt 0:00:28]} e5 {[%emt 0:02:23]} 9. Qd3 {[%emt 0:00:27]} h6 {[%emt 0:00:46]} 10. Bh4 {[%emt 1:25:24]} Be7 11. O-O-O {[%emt 0:00:00]} g5 {[%emt 0:01:44]} 12. Bg3 {[%emt 0:01:00]} O-O 13. h4 g4 14. Nd2 Qc7 15. Nc4 Rad8 16. Ne3 b5 17. Nf5 b4 18. Nd5 Bxd5 19. exd5 Rc8 20. Nxh6+ Kg7 21. Nf5+ Kg8 22. Rd2 Qd7 23. f3 Rc5 24. Nxe7+ Qxe7 25. Qf5 Rxd5 26. Rxd5 {[%emt 0:00:00]} Nxd5 {[%emt 0:08:11]} 27. Qxg4+ {[%emt 0:00:00]} Kh8 {[%emt 0:39:43]} 28. Qe4 {[%emt 0:08:00]} Qe6 29. Rd1 Qh6+ 30. Kb1 Ne3 31. Rxd6 f6 32. Bxe5 {[%emt 0:00:00]} Nxg2 {[%emt 0:03:55]} 33. Qf5 {[%emt 0:02:30]} Ne3 34. Bxf6+ Rxf6 35. Qxf6+ Qxf6 36. Rxf6 Kg7 37. Ra6 Nc4 38. Rxa7+ Kh6 39. Kc1 {[%emt 0:00:00] Kg7 Kb1+ Kh6 Kc1} Kh5 {[%emt 0:15:23]} 40. Ra4 {[%emt 0:00:00]} 1-0

[Event "2nd Gujarat Open 2019"]
[Site "Ahmedabad, Gujarat"]
[Date "2019.09.22"]
[Round "?"]
[White "Shubham, Lakudkar"]
[Black "Rozum, Ivan"]
[Result "0-1"]
[ECO "B01"]
[WhiteElo "2023"]
[BlackElo "2596"]
[Annotator "ChessBase"]
[PlyCount "50"]
[EventDate "2019.09.22"]
[EventCountry "IND"]
[SourceTitle "playchess.com"]
[Source "ChessBase"]
[SourceQuality "1"]
[TimeControl "5400+30"]

1. e4 {[%emt 0:00:00]} d5 {[%emt 0:00:00]} 2. exd5 {[%emt 0:00:30]} Qxd5 {[%emt 0:00:30]} 3. Nc3 {[%emt 0:00:30]} Qd6 {[%emt 0:00:30]} 4. d4 {[%emt 0:00:30]} c6 {[%emt 0:00:30]} 5. Nf3 {[%emt 0:00:30]} Bf5 {[%emt 0:00:30]} 6. Nh4 {[%emt 0:00:30]} Be6 {[%emt 0:00:30]} 7. g3 {[%emt 0:00:30]} Nf6 {[%emt 0:00:30]} 8. Bg2 {[%emt 0:00:30]} Bc4 {[%emt 0:00:30]} 9. Nf5 {[%emt 0:00:30]} Qd7 {[%emt 0:00:30]} 10. Ne3 {[%emt 0:00:30]} Ba6 {[%emt 0:00:30]} 11. Ne4 {[%emt 0:00:30]} Nxe4 {[%emt 0:00:30]} 12. Bxe4 {[%emt 0:00:30]} g6 {[%emt 1:31:00]} 13. d5 Bg7 {[%emt 0:00:30]} 14. dxc6 Nxc6 {[%emt 0:00:30]} 15. Qxd7+ Kxd7 16. c3 Ne5 17. Kd2 Rad8 18. f4 Kc8+ 19. Ke1 Nd3+ 20. Bxd3 Rxd3 21. Bd2 e5 22. Rd1 exf4 23. gxf4 Bh6 {[%emt 0:04:30]} 24. Ng4 Rf3 25. c4 Re8+ 0-1

[Event "2nd Gujarat Open 2019"]
[Site "Ahmedabad, Gujarat"]
[Date "2019.09.22"]
[Round "?"]
[White "Garv Rai"]
[Black "Chanda, Sandipan"]
[Result "0-1"]
[ECO "A80"]
[WhiteElo "1828"]
[BlackElo "2529"]
[Annotator "ChessBase"]
[PlyCount "58"]
[EventDate "2019.09.22"]
[EventCountry "IND"]
[SourceTitle "playchess.com"]
[Source "ChessBase"]
[SourceQuality "1"]
[TimeControl "5400+30"]

1. d4 {[%emt 0:00:01]} f5 {[%emt 0:00:00]} 2. Bg5 {[%emt 0:00:04]} g6 {[%emt 0:00:00]} 3. e3 {[%emt 0:00:08]} Bg7 {[%emt 0:00:00]} 4. h4 {[%emt 0:00:07]} d6 {[%emt 0:04:30]} 5. Nf3 {[%emt 0:02:12]} h6 {[%emt 0:01:39]} 6. Bf4 {[%emt 0:00:33]} Nf6 {[%emt 0:00:36]} 7. Bc4 {[%emt 0:00:56]} e6 {[%emt 0:04:01]} 8. Nc3 {[%emt 0:09:26]} Qe7 {[%emt 0:04:46]} 9. Qe2 {[%emt 0:01:20]} Nc6 {[%emt 0:02:13]} 10. Rd1 {[%emt 0:14:12]} a6 {[%emt 0:15:02]} 11. Bh2 {[%emt 0:11:13]} O-O {[%emt 0:04:32]} 12. a3 {[%emt 0:04:41]} Kh8 {[%emt 0:01:46]} 13. b4 {[%emt 0:14:29]} Ne4 {[%emt 0:04:53]} 14. Nb1 {[%emt 0:03:16]} Bd7 {[%emt 0:07:47]} 15. Bb3 {[%emt 0:05:41]} e5 {[%emt 0:03:06]} 16. d5 {[%emt 0:03:13]} Nd8 {[%emt 0:00:20]} 17. c4 {[%emt 0:00:42]} Nf7 {[%emt 0:02:45]} 18. Bc2 {[%emt 0:01:49]} Kg8 {[%emt 0:00:56]} 19. g4 {[%emt 0:01:51]} fxg4 {[%emt 0:05:44]} 20. Bxe4 {[%emt 0:01:07]} gxf3 {[%emt 0:00:08]} 21. Bxf3 {[%emt 0:00:16]} e4 {[%emt 0:00:12]} 22. Bg4 {[%emt 0:07:26]} Be5 {[%emt 0:05:34]} 23. Nd2 {[%emt 0:06:34]} Bxh2 {[%emt 0:01:28]} 24. Rxh2 {[%emt 0:01:14]} Ne5 {[%emt 0:02:34]} 25. Bxd7 {[%emt 0:00:10]} Qxd7 {[%emt 0:00:12]} 26. Kf1 {[%emt 0:03:27]} Qg4 {[%emt 0:01:25]} 27. Nb3 {[%emt 0:03:02]} Qg3 {[%emt 0:03:43]} 28. Rg2 {[%emt 0:01:03]} Qh3 {[%emt 0:01:15]} 29. Nd4 {[%emt 0:03:04]} Nf3 {[%emt 0:00:58]} 0-1